bitfinex-derivatives/quotes_SOLF0:USTF0_20250603
["timestamp","ask_amount","ask_price","bid_price","bid_amount"]
[1748948118143,6.26120087,160.78,160.74,6.2174]
[1748948118344,6.26120087,160.78,160.75,6.2172]
[1748948120237,0.04490087,160.78,160.76,6.2169]
[1748948120438,0.04490087,160.78,160.75,6.46044339]
[1748948121143,0.04490087,160.78,160.76,6.2169]
[1748948121441,0.04490087,160.78,160.75,6.46044339]
[1748948122144,0.04490087,160.78,160.76,6.2166]
[1748948123342,91.96657054,160.84,160.77,6.41633116]
[1748948123549,124.60657054,160.84,160.79,6.41633116]
[1748948124336,0.04079679,160.83,160.8,0.04334245]
[1748948125342,0.04079679,160.83,160.81,6.2149]
[1748948125948,6.25499679,160.83,160.8,6.25854245]
[1748948126652,0.04079679,160.83,160.81,6.2149]
[1748948127847,0.04079679,160.83,160.8,0.04334245]
[1748948127848,6.25509679,160.83,160.8,6.25854245]
[1748948130448,6.2147,160.82,160.8,6.25854245]
[1748948130855,6.2147,160.82,160.8,0.04334245]
[1748948131250,6.25509679,160.83,160.8,0.04334245]
[1748948131454,6.25509679,160.83,160.8,6.25844245]
[1748948133153,0.04079679,160.83,160.8,0.04334245]
[1748948133758,6.2148,160.82,160.8,0.04334245]
[1748948134960,6.25519679,160.83,160.8,6.25864245]
[1748948135961,0.04079679,160.83,160.8,6.25864245]
[1748948136157,0.04079679,160.83,160.81,6.2147]
[1748948139560,0.04079679,160.83,160.82,6.2146]
[1748948142165,25.9184,160.86,160.84,6.41633116]
[1748948142869,25.9184,160.86,160.85,6.2134]
[1748948143168,32.62,160.94,160.84,6.46323938]
[1748948143368,32.62,160.94,160.88,6.41633116]
[1748948143557,6.211,160.92,160.88,6.41633116]
[1748948143761,6.211,160.92,160.89,6.2117]
[1748948144063,32.62,160.94,160.89,6.2117]
[1748948144264,6.2109,160.92,160.89,6.2117]
[1748948146967,32.62,160.94,160.88,12.62843116]
[1748948147665,32.62,160.94,160.88,6.41633116]
[1748948148269,6.2111,160.92,160.88,12.62833116]
[1748948148472,32.62,160.94,160.87,0.04313996]
[1748948148771,6.41633116,160.93,160.87,0.04313996]
[1748948149067,6.2123,160.88,160.87,0.04313996]
[1748948149268,6.41633116,160.93,160.87,0.04313996]
[1748948149771,6.2123,160.88,160.87,0.04313996]
[1748948150160,6.212,160.89,160.87,0.04313996]
[1748948152167,32.12,160.93,160.87,0.04313996]
[1748948152369,32.12,160.93,160.87,6.45947112]
[1748948152767,32.12,160.93,160.89,6.41633116]
[1748948153176,32.12,160.93,160.9,6.2112]
[1748948153573,32.12,160.93,160.89,6.41633116]
[1748948153976,32.12,160.93,160.92,6.2107]
[1748948154375,32.12,160.93,160.84,7.68356927]
[1748948154376,52.23070802,160.93,160.84,5.70606927]
[1748948154578,52.23070802,160.93,160.77,32.12]
[1748948154579,6.40491786,160.85,160.77,37.85164679]
[1748948154784,6.40491786,160.85,160.79,6.2156]
[1748948155079,6.214,160.84,160.79,6.2156]
[1748948155375,0.04404539,160.83,160.8,0.04662711]
[1748948156480,12.61933171,160.82,160.8,0.04662711]
[1748948156672,6.40473171,160.82,160.8,0.04662711]
[1748948157069,6.215,160.81,160.8,0.04662711]
[1748948161071,12.61943171,160.82,160.8,0.04662711]
[1748948162184,12.61943171,160.82,160.8,6.26192711]
[1748948164281,12.61943171,160.82,160.8,0.04662711]
[1748948165285,6.215,160.81,160.8,0.04662711]
[1748948165586,0.04404539,160.83,160.8,6.26192711]
[1748948165888,6.2148,160.82,160.8,6.26192711]
[1748948167489,6.2148,160.82,160.8,0.04662711]
[1748948167688,6.215,160.81,160.8,0.04662711]
[1748948168993,6.4487771,160.83,160.8,0.04662711]
[1748948168994,6.2148,160.82,160.8,0.04662711]
[1748948170786,6.2148,160.82,160.8,6.26192711]
[1748948172197,0.04404539,160.83,160.8,0.04662711]
[1748948173193,0.04404539,160.83,160.82,6.2146]
[1748948175302,0.04404539,160.83,160.82,37.9146]
[1748948175993,37.8482,160.92,160.82,31.7]
[1748948176300,37.8482,160.92,160.82,48.00070699]
[1748948176301,6.40473171,160.9,160.82,48.00070699]
[1748948176493,6.2122,160.89,160.82,42.23563171]
[1748948176693,6.2122,160.89,160.87,6.2127]
[1748948176997,6.2122,160.89,160.82,42.23563171]
[1748948177299,6.2122,160.89,160.86,6.25853514]
[1748948178396,12.61643171,160.9,160.87,6.2126]
[1748948179103,6.2119,160.89,160.87,6.2126]
[1748948179391,12.61663171,160.89,160.87,6.2126]
[1748948181092,12.61663171,160.89,160.86,6.25863514]
[1748948182187,6.40473171,160.89,160.86,0.04573514]
[1748948182794,6.2126,160.88,160.86,0.04573514]
[1748948183606,6.40473171,160.89,160.86,0.04573514]
[1748948184099,12.61673171,160.89,160.86,6.25853514]
[1748948184298,12.61673171,160.89,160.86,0.04573514]
[1748948184901,12.61673171,160.89,160.86,6.25853514]
[1748948187193,6.40473171,160.91,160.86,0.04573514]
[1748948187595,12.61623171,160.91,160.88,6.2122]
[1748948187991,6.40473171,160.91,160.88,6.2122]
[1748948188397,6.2117,160.9,160.87,6.2125]
[1748948189109,6.2117,160.9,160.88,6.2122]
[1748948189599,121.02,160.94,160.87,5.76194465]
[1748948189803,4.1919,160.97,160.9,6.40473171]
[1748948190003,31.7,160.98,160.9,6.40473171]
[1748948190004,6.2097,160.95,160.9,6.40473171]
[1748948190204,6.2097,160.95,160.92,6.2105]
[1748948191905,31.7,160.98,160.91,6.44532383]
[1748948192103,31.7,160.98,160.93,6.40473171]
[1748948192303,6.2086,160.98,160.95,6.2094]
[1748948192604,6.2086,160.98,160.95,6.25130097]
[1748948192802,6.2086,160.98,160.95,6.25140097]
[1748948196008,6.2081,160.99,160.96,6.209]
[1748948196207,6.40473171,161.03,160.95,6.44663268]
[1748948196798,31.68,161.04,160.97,6.40473171]
[1748948197003,31.68,161.04,160.99,0.04708673]
[1748948197201,6.2069,161.02,160.99,6.25488673]
[1748948197604,6.40473171,161.05,160.99,6.25488673]
[1748948197899,6.40473171,161.05,160.99,0.04708673]
[1748948198107,6.40473171,161.03,160.99,0.04708673]
[1748948198506,6.2075,161.01,160.99,0.04708673]
[1748948198808,6.40473171,161.01,160.99,0.04708673]
[1748948200013,6.2076,161.0,160.99,0.04708673]
[1748948200809,6.2091,160.97,160.94,4.042]
[1748948201114,6.40473171,161.0,160.94,4.042]
[1748948201314,6.40473171,161.0,160.92,31.68]
[1748948201614,6.2085,160.98,160.92,31.68]
[1748948201802,6.2085,160.98,160.93,0.04607768]
[1748948201803,0.04117346,160.97,160.93,0.04607768]
[1748948202107,0.04117346,160.97,160.94,6.2099]
[1748948203209,0.04117346,160.97,160.95,6.2095]
[1748948203916,6.24997346,160.97,160.94,6.2098]
[1748948204820,0.04117346,160.97,160.95,6.2095]
[1748948205027,0.04117346,160.97,160.93,0.04607768]
[1748948205411,6.25007346,160.97,160.94,6.2097]
[1748948205611,0.04117346,160.97,160.93,0.04607768]
[1748948206017,0.04117346,160.97,160.95,6.2094]
[1748948207521,0.04117346,160.97,160.96,6.2092]
[1748948208216,31.68,161.03,160.99,6.2077]
[1748948208620,31.68,161.03,160.96,31.36]
[1748948208817,6.40473171,161.05,160.96,31.36]
[1748948209121,37.76473171,161.06,160.97,6.40473171]
[1748948209323,37.76473171,161.06,161.0,6.2074]
[1748948209714,37.76473171,161.06,160.99,6.25415732]
[1748948209922,6.40473171,161.04,160.99,6.25415732]
[1748948210321,6.2071,161.02,160.99,6.25415732]
[1748948214927,6.2066,161.03,161.0,6.2074]
[1748948216026,6.2066,161.03,160.99,0.04625732]
[1748948216524,6.40473171,161.04,161.01,6.2071]
[1748948218120,6.2066,161.03,161.01,6.2071]
[1748948218322,37.76473171,161.06,161.01,6.2071]
[1748948218721,6.2063,161.04,161.01,6.2071]
[1748948219027,37.76473171,161.06,161.01,6.2071]
[1748948219225,6.2065,161.04,161.01,6.2071]
[1748948219628,37.76473171,161.06,161.01,6.2071]
[1748948220630,6.2063,161.04,161.01,6.2071]
[1748948221229,6.2065,161.03,161.01,6.2071]
[1748948222730,6.2063,161.04,160.99,6.45098903]
[1748948223225,6.40473171,161.02,160.99,0.04625732]
[1748948224229,6.2075,161.01,160.99,0.04625732]
[1748948224434,6.40473171,161.02,160.99,0.04625732]
[1748948224933,6.2075,161.01,160.99,0.04625732]
[1748948225824,6.2076,161.0,160.99,0.04625732]
[1748948226731,6.2075,161.01,160.99,0.04625732]
[1748948228037,12.61183171,161.02,161.0,6.2076]
[1748948231538,6.2071,161.02,161.0,6.2076]
[1748948232133,6.2071,161.02,160.99,6.25405732]
[1748948232333,37.76473171,161.06,160.99,0.04625732]
[1748948233137,6.2061,161.04,161.01,6.207]
[1748948233951,6.2065,161.03,160.99,0.04625732]
[1748948234444,6.2065,161.03,161.01,6.2072]
[1748948235544,6.2063,161.04,161.01,6.2072]
[1748948238547,37.76473171,161.06,161.01,6.2072]
[1748948238548,6.2065,161.03,161.01,6.2072]
[1748948241347,6.207,161.02,160.99,5.80934153]
[1748948241648,6.40473171,161.04,160.99,5.80934153]
[1748948241841,6.207,161.02,160.99,12.01724153]
[1748948242846,6.40473171,161.04,160.99,5.80934153]
[1748948243045,6.40473171,161.04,160.99,0.04625732]
[1748948243249,6.40473171,161.05,160.99,0.04625732]
[1748948243451,6.2063,161.04,160.99,0.04625732]
[1748948244053,6.2063,161.04,161.01,6.2072]
[1748948244555,6.2065,161.03,161.01,6.2072]
[1748948244756,6.2065,161.03,161.0,6.2075]
[1748948245450,31.36,161.06,161.01,6.2071]
[1748948245451,6.2062,161.04,161.01,6.2071]
[1748948247456,39.57663171,161.09,161.02,5.76447678]
[1748948247664,39.57663171,161.09,161.04,0.04167032]
[1748948248155,6.2052,161.07,161.04,0.04167032]
[1748948248754,6.2052,161.07,161.04,6.24777032]
[1748948249255,6.2054,161.06,161.04,0.04167032]
[1748948250456,6.2051,161.07,161.04,6.24767032]
[1748948250658,31.06,161.09,161.04,0.04167032]
[1748948251357,6.2047,161.08,161.05,6.2055]
[1748948252865,744.77738007,161.12,161.08,6.2046]
[1748948253064,31.04,161.16,161.09,6.40473171]
[1748948253262,2.54455928,161.18,161.11,6.44468403]
[1748948253465,6.2013,161.17,161.13,6.2024]
[1748948253769,2.54455928,161.18,161.13,6.40473171]
[1748948253968,2.54455928,161.18,161.16,6.2012]
[1748948254164,1.07997393,161.24,161.16,31.04]
[1748948254364,4.025,161.36,161.23,6.40473171]
[1748948254564,6.40473171,161.32,161.28,0.04272899]
[1748948254767,4.025,161.36,161.28,0.04272899]
[1748948254971,4.025,161.36,161.29,6.40473171]
[1748948255266,6.40473171,161.35,161.28,0.04272899]
[1748948255667,6.195,161.33,161.28,0.04272899]
[1748948256066,6.40473171,161.35,161.28,0.04272899]
[1748948256371,10.42973171,161.36,161.28,0.04272899]
[1748948256566,31.04,161.35,161.28,0.04272899]
[1748948256769,31.04,161.35,161.29,6.40473171]
[1748948256970,6.1949,161.34,161.29,6.40473171]
[1748948257163,31.04,161.35,161.29,6.40473171]
[1748948257667,6.1953,161.33,161.29,6.40473171]
[1748948258167,31.04,161.35,161.29,6.40473171]
[1748948259066,31.04,161.35,161.28,0.04272899]
[1748948259270,6.40473171,161.37,161.29,6.40473171]
[1748948259470,6.40473171,161.37,161.28,0.04272899]
[1748948259471,6.40473171,161.35,161.31,0.04375796]
[1748948260065,6.1952,161.33,161.31,0.04375796]
[1748948261069,6.1953,161.32,161.31,0.04375796]
[1748948261268,6.40473171,161.35,161.31,0.04375796]
[1748948261873,31.04,161.38,161.31,0.04375796]
[1748948262063,6.40473171,161.34,161.31,0.04375796]
[1748948262268,6.1953,161.33,161.31,0.04375796]
[1748948262773,6.1953,161.32,161.31,0.04375796]
[1748948263471,12.60003171,161.32,161.31,0.04375796]
[1748948263974,6.1953,161.32,161.31,0.04375796]
[1748948266373,6.1973,161.27,161.24,31.42]
[1748948266775,6.40473171,161.3,161.24,31.42]
[1748948267077,6.40473171,161.3,161.22,6.40473171]
[1748948267286,6.40473171,161.3,161.24,0.22693]
[1748948267483,0.04042321,161.29,161.25,0.04310742]
[1748948267675,6.197,161.28,161.25,0.04310742]
[1748948270173,6.1976,161.27,161.25,0.04310742]
[1748948270770,6.197,161.28,161.25,0.04310742]
[1748948271376,6.1974,161.27,161.25,0.04310742]
[1748948272181,0.04042321,161.29,161.25,0.04310742]
[1748948273181,0.04042321,161.29,161.25,6.24090742]
[1748948273984,0.04042321,161.29,161.25,0.04310742]
[1748948274575,6.1973,161.27,161.25,0.04310742]
[1748948274785,0.04042321,161.29,161.25,0.04310742]
[1748948275874,0.04042321,161.29,161.26,6.1975]
[1748948277183,6.23692321,161.29,161.25,6.24100742]
[1748948277586,6.23692321,161.29,161.25,0.04310742]
[1748948278086,0.04042321,161.29,161.26,6.1975]
[1748948278479,6.23692321,161.29,161.25,6.24080742]
[1748948279188,6.23692321,161.29,161.25,0.04310742]
[1748948279986,6.23692321,161.29,161.26,6.1975]
[1748948280678,6.1969,161.28,161.25,6.24100742]
[1748948281083,0.04042321,161.29,161.25,0.04310742]
[1748948281282,0.04042321,161.29,161.27,6.197]
[1748948281492,6.23692321,161.29,161.25,0.04310742]
[1748948281787,6.23692321,161.29,161.26,6.1974]
[1748948281984,6.23692321,161.29,161.25,0.04310742]
[1748948282487,0.04042321,161.29,161.25,0.04310742]
[1748948282984,0.04042321,161.29,161.27,6.1969]
[1748948283683,6.23702321,161.29,161.26,6.1973]
[1748948283891,0.04042321,161.29,161.26,6.3661559]
[1748948284081,0.04042321,161.29,161.28,6.1969]
[1748948284383,31.42,161.38,161.28,6.36205862]
[1748948284584,37.78154256,161.38,161.29,6.36154256]
[1748948284789,6.1944,161.35,161.32,6.1951]
[1748948285185,6.1945,161.35,161.32,6.1951]
[1748948285388,6.1945,161.35,161.32,6.23731933]
[1748948286789,6.1946,161.34,161.32,0.04221933]
[1748948286989,6.36154256,161.34,161.32,0.04221933]
[1748948287190,6.36154256,161.34,161.27,6.1971]
[1748948287191,37.78154256,161.34,161.27,6.1971]
[1748948287489,6.36154256,161.31,161.27,6.1971]
[1748948288290,6.40657057,161.31,161.28,6.1968]
[1748948288787,6.40657057,161.31,161.27,6.24421443]
[1748948289277,12.60257057,161.31,161.27,6.24421443]
[1748948289481,12.60257057,161.31,161.28,6.1968]
[1748948290387,6.40657057,161.31,161.28,6.1968]
[1748948290590,0.04502801,161.31,161.27,0.04721443]
[1748948291088,0.04502801,161.31,161.28,6.1965]
[1748948291388,0.04502801,161.31,161.27,6.40875699]
[1748948291585,0.04502801,161.31,161.28,6.1967]
[1748948292487,0.04502801,161.31,161.27,0.04721443]
[1748948293186,6.1964,161.3,161.27,0.04721443]
[1748948294192,6.1962,161.3,161.27,6.24441443]
[1748948296596,6.1965,161.29,161.27,0.04721443]
[1748948296798,0.04502801,161.31,161.27,0.04721443]
[1748948297397,6.1964,161.3,161.27,0.04721443]
[1748948298295,6.1964,161.3,161.27,6.24411443]
[1748948298485,0.04502801,161.31,161.27,0.04721443]
[1748948298690,0.04502801,161.31,161.27,5.71936246]
[1748948300594,37.62959592,161.3,161.27,0.04721443]
[1748948300895,6.37019109,161.29,161.27,0.04721443]
[1748948301286,6.1969,161.28,161.27,0.04721443]
[1748948303193,6.37019109,161.29,161.21,5.73862244]
[1748948303392,6.37019109,161.25,161.2,5.73862244]
[1748948303597,6.1994,161.22,161.19,5.73862244]
[1748948303795,37.63019109,161.25,161.19,5.73862244]
[1748948304193,6.1996,161.21,161.2,0.04520965]
[1748948309110,6.1993,161.22,161.2,0.04520965]
[1748948309409,6.37019109,161.23,161.2,0.04520965]
[1748948309796,6.1994,161.22,161.2,0.04520965]
[1748948311106,12.56919109,161.23,161.2,0.04520965]
[1748948311507,6.37019109,161.23,161.2,0.04520965]
[1748948312214,0.0409935,161.24,161.2,0.04520965]
[1748948312704,0.0409935,161.24,161.22,6.199]
[1748948313305,0.0409935,161.24,161.23,6.1988]
[1748948313706,0.0409935,161.24,161.21,6.1992]
[1748948314411,0.0409935,161.24,161.22,6.1992]
[1748948314607,0.0409935,161.24,161.2,6.41540074]
[1748948315020,0.0409935,161.24,161.21,6.1992]
[1748948315314,0.0409935,161.24,161.2,6.41540074]
[1748948316016,0.0409935,161.24,161.2,0.04520965]
[1748948316611,0.0409935,161.24,161.21,6.1992]
[1748948316906,0.0409935,161.24,161.2,0.04520965]
[1748948317613,0.0409935,161.24,161.21,6.1995]
[1748948318016,0.0409935,161.24,161.2,0.04520965]
[1748948318320,0.0409935,161.24,161.22,6.1992]
[1748948319007,0.0409935,161.24,161.23,6.1988]
[1748948319826,31.26,161.31,161.26,6.1975]
[1748948320025,31.26,161.31,161.23,6.37019109]
[1748948320319,6.1964,161.3,161.25,6.37019109]
[1748948320821,0.04552967,161.29,161.27,6.197]
[1748948322012,0.04552967,161.29,161.28,6.1969]
[1748948322426,0.04552967,161.29,161.26,0.04623398]
[1748948323018,6.24202967,161.29,161.26,0.04623398]
[1748948323425,0.04552967,161.29,161.26,0.04623398]
[1748948324020,0.04552967,161.29,161.27,6.1969]
[1748948324220,6.24202967,161.29,161.26,0.04623398]
[1748948324927,0.04552967,161.29,161.28,6.1969]
[1748948325231,0.04552967,161.29,161.26,0.04623398]
[1748948325424,0.04552967,161.29,161.28,6.1969]
[1748948327824,31.2,161.34,161.28,6.37019109]
[1748948328834,31.2,161.34,161.29,0.04493253]
[1748948329127,31.2,161.34,161.31,6.1956]
[1748948329128,37.3948,161.34,161.31,6.1956]
[1748948329331,31.2,161.34,161.29,0.04493253]
[1748948329629,37.57019109,161.34,161.29,0.04493253]
[1748948330233,6.37019109,161.32,161.29,0.04493253]
[1748948330736,6.196,161.31,161.29,0.04493253]
[1748948331139,6.1961,161.3,161.29,0.04493253]
[1748948331649,43.76629109,161.3,161.29,0.04493253]
[1748948333038,31.2,161.3,161.29,0.04493253]
[1748948336243,37.3961,161.3,161.29,0.04493253]
[1748948338949,6.1961,161.3,161.29,0.04493253]
[1748948343151,31.2,161.33,161.29,0.04493253]
[1748948343746,37.395,161.33,161.3,6.196]
[1748948346851,6.1955,161.32,161.3,6.196]
[1748948350163,31.2,161.33,161.29,6.41512362]
[1748948350456,126.53019109,161.36,161.29,6.41512362]
[1748948350457,157.71019109,161.36,161.29,6.41512362]
[1748948350657,157.71019109,161.36,161.31,6.1957]
[1748948350956,37.55019109,161.36,161.31,6.1957]
[1748948351360,6.1948,161.34,161.31,6.1957]
[1748948351853,37.3739,161.36,161.31,6.37019109]
[1748948352852,37.3739,161.36,161.33,6.1947]
[1748948353054,31.18,161.36,161.33,6.23571485]
[1748948353251,31.18,161.36,161.33,0.04101485]
[1748948353956,6.1946,161.34,161.33,0.04101485]
[1748948356448,6.37019109,161.35,161.29,2.1367]
[1748948356856,6.37019109,161.35,161.29,8.3331]
[1748948357055,6.1956,161.32,161.29,8.3331]
[1748948357250,6.1956,161.32,161.3,2.67292004]
[1748948357455,0.04310765,161.33,161.3,6.1961]
[1748948357654,0.04310765,161.33,161.29,2.18330542]
[1748948357855,0.04310765,161.33,161.3,8.86880734]
[1748948358162,6.23830765,161.33,161.31,2.67317233]
[1748948358349,6.23830765,161.33,161.3,6.1959]
[1748948358549,6.23830765,161.33,161.31,2.67305979]
[1748948358753,6.23830765,161.33,161.3,6.1959]
[1748948358949,6.23830765,161.33,161.31,2.67301595]
[1748948359261,6.23830765,161.33,161.3,6.1959]
[1748948359960,6.23830765,161.33,161.31,2.67305588]
[1748948360362,0.04310765,161.33,161.31,8.86875588]
[1748948361158,0.04310765,161.33,161.32,6.1953]
[1748948361556,6.23800765,161.33,161.31,2.67305588]
[1748948361757,0.04310765,161.33,161.31,2.67305588]
[1748948362162,6.23840765,161.33,161.31,2.67305588]
[1748948362359,6.23840765,161.33,161.31,8.86865588]
[1748948362360,0.04310765,161.33,161.31,8.86865588]
[1748948362865,0.04310765,161.33,161.32,2.67297154]
[1748948363064,0.04310765,161.33,161.31,8.86865588]
[1748948363868,0.04310765,161.33,161.32,5.19912906]
[1748948364369,0.04310765,161.33,161.32,7.87207837]
[1748948364565,6.23800765,161.33,161.32,5.19912906]
[1748948364869,6.23800765,161.33,161.32,7.8720813]
[1748948365077,6.23800765,161.33,161.32,7.8721006]
[1748948365262,6.23800765,161.33,161.32,5.20040738]
[1748948365569,6.23800765,161.33,161.32,7.87337892]
[1748948365765,6.23800765,161.33,161.32,5.20040738]
[1748948366461,0.04310765,161.33,161.32,5.20040738]
[1748948366662,0.04310765,161.33,161.32,7.87376274]
[1748948366963,0.04310765,161.33,161.32,5.20040738]
[1748948367970,6.23800765,161.33,161.32,5.20040738]
[1748948368159,6.23800765,161.33,161.32,7.87381033]
[1748948368363,0.04310765,161.33,161.32,5.20040738]
[1748948368566,0.04310765,161.33,161.32,7.87388939]
[1748948368766,0.04310765,161.33,161.32,7.87387049]
[1748948368971,0.04310765,161.33,161.32,5.20040738]
[1748948369276,0.04310765,161.33,161.32,5.2034364]
[1748948369674,0.04310765,161.33,161.32,7.87687316]
[1748948369869,0.04310765,161.33,161.32,7.87694768]
[1748948370074,0.04310765,161.33,161.32,5.2034364]
[1748948370467,0.04310765,161.33,161.32,7.87702174]
[1748948370777,0.04310765,161.33,161.32,11.3987364]
[1748948371279,0.04310765,161.33,161.32,14.07204144]
[1748948371478,0.04310765,161.33,161.32,14.07218758]
[1748948371678,0.04310765,161.33,161.32,11.3987364]
[1748948372173,0.04310765,161.33,161.32,14.07248833]
[1748948372377,0.04310765,161.33,161.32,11.3987364]
[1748948372780,0.04310765,161.33,161.32,14.07252162]
[1748948372977,0.04310765,161.33,161.32,14.07251959]
[1748948373285,0.04310765,161.33,161.32,14.07398768]
[1748948373674,0.04310765,161.33,161.32,16.74779799]
[1748948374173,0.04310765,161.33,161.32,14.07398768]
[1748948374573,0.04310765,161.33,161.32,16.74779944]
[1748948374776,0.04310765,161.33,161.32,14.07398768]
[1748948377381,0.04310765,161.33,161.32,16.74581229]
[1748948377682,0.04310765,161.33,161.32,16.74581296]
[1748948377876,0.04310765,161.33,161.32,14.07460464]
[1748948378082,6.1935,161.37,161.35,6.1941]
[1748948378481,6.1935,161.37,161.32,9.04403153]
[1748948378678,6.1935,161.37,161.34,6.1943]
[1748948378879,6.1935,161.37,161.35,5.20557997]
[1748948379078,6.1935,161.37,161.34,6.23749882]
[1748948379784,6.1935,161.37,161.35,5.20498124]
[1748948379983,31.12,161.38,161.34,6.23749882]
[1748948380184,31.12,161.38,161.35,5.205641]
[1748948380387,31.12,161.38,161.34,0.04319882]
[1748948380681,6.1938,161.37,161.35,5.20436022]
[1748948380886,6.1938,161.37,161.34,6.23769882]
[1748948381179,31.12,161.38,161.35,5.20486148]
[1748948381387,31.12,161.38,161.34,0.04319882]
[1748948381576,6.1938,161.36,161.35,5.20474122]
[1748948381778,31.12,161.38,161.35,5.20474122]
[1748948381978,31.12,161.38,161.34,0.04319882]
[1748948382283,6.1938,161.36,161.34,0.04319882]
[1748948382785,31.12,161.38,161.34,0.04319882]
[1748948384881,6.37019109,161.36,161.34,0.04319882]
[1748948385183,6.1942,161.35,161.34,0.04319882]
[1748948388591,6.1939,161.36,161.34,5.25427923]
[1748948388786,6.1939,161.36,161.34,0.04319882]
[1748948390286,1.07898613,161.36,161.32,1.55413236]
[1748948390487,157.383154,161.35,161.32,1.55413236]
[1748948390688,6.3650272,161.34,161.32,1.55413236]
[1748948390888,6.36645269,161.33,161.31,2.67305588]
[1748948391085,6.36645269,161.33,161.26,5.97931251]
[1748948391282,6.36645269,161.29,161.28,0.04113743]
[1748948391486,6.36645269,161.29,161.28,5.2555651]
[1748948391783,6.36645269,161.29,161.28,0.04113743]
[1748948391983,6.36645269,161.29,161.28,5.25698664]
[1748948392381,12.56295269,161.29,161.28,5.25698664]
[1748948392786,12.56295269,161.29,161.28,0.04113743]
[1748948392995,6.1973,161.27,161.26,0.23971]
[1748948393194,12.56375269,161.27,161.26,5.45517956]
[1748948393591,12.56375269,161.27,161.26,5.45238973]
[1748948394189,12.56375269,161.27,161.26,0.23971]
[1748948395491,6.1976,161.26,161.25,0.04331383]
[1748948395789,6.1976,161.26,161.25,5.25429338]
[1748948396192,6.1976,161.26,161.25,0.04331383]
[1748948396390,12.60374855,161.27,161.25,0.04331383]
[1748948400002,6.40624855,161.27,161.25,0.04331383]
[1748948400296,0.03979586,161.27,161.25,0.04331383]
[1748948400491,0.03979586,161.27,161.26,5.20108756]
[1748948400696,6.36645269,161.3,161.29,6.1965]
[1748948400997,6.36645269,161.3,161.26,5.20108756]
[1748948400998,6.36645269,161.32,161.25,0.04331383]
[1748948401197,30.94,161.34,161.32,6.1951]
[1748948401397,37.30645269,161.34,161.32,6.1951]
[1748948402004,0.04312502,161.35,161.33,6.1947]
[1748948402194,0.04312502,161.35,161.31,0.04035269]
[1748948402395,30.94,161.37,161.33,6.36645269]
[1748948402604,30.94,161.4,161.33,6.36645269]
[1748948403100,30.94,161.4,161.35,6.1939]
[1748948403405,6.1929,161.39,161.36,0.04347126]
[1748948403605,30.94,161.4,161.36,0.04347126]
[1748948404102,6.1929,161.39,161.36,0.04347126]
[1748948405511,6.1931,161.38,161.36,0.04347126]
[1748948405703,30.94,161.4,161.36,0.04347126]
[1748948406109,6.1927,161.39,161.36,6.23717126]
[1748948406401,30.94,161.4,161.36,0.04347126]
[1748948406604,37.30645269,161.4,161.36,0.04347126]
[1748948407707,30.94,161.4,161.36,0.04347126]
[1748948408609,37.1325,161.4,161.37,6.1931]
[1748948409903,30.94,161.4,161.38,6.193]
[1748948410403,30.94,161.4,161.36,0.04347126]
[1748948410610,30.94,161.4,161.38,6.1928]
[1748948410912,6.1919,161.41,161.38,6.1928]
[1748948411405,548.11805269,161.42,161.38,6.1928]
[1748948411705,30.92,161.43,161.38,6.36645269]
[1748948412707,37.1114,161.43,161.4,6.1922]
[1748948412908,8.91101197,161.46,161.4,0.04535321]
[1748948412909,2.54455928,161.46,161.4,0.04535321]
[1748948413310,2.54455928,161.46,161.4,6.4118059]
[1748948413506,559.24147564,161.59,161.44,6.36645269]
[1748948413711,6.1877,161.52,161.5,0.04215746]
[1748948413911,37.28645269,161.53,161.5,0.04215746]
[1748948414301,3.09169967,161.57,161.5,0.04215746]
[1748948414499,2.014,161.57,161.5,0.04215746]
[1748948414712,6.36645269,161.55,161.5,0.04215746]
[1748948415110,6.36645269,161.53,161.5,0.04215746]
[1748948415507,12.55395269,161.53,161.5,0.04215746]
[1748948416208,12.55395269,161.53,161.5,6.23055746]
[1748948416209,6.1875,161.53,161.5,6.23055746]
[1748948416408,6.1878,161.52,161.5,0.04215746]
[1748948416609,6.36645269,161.54,161.5,0.04215746]
[1748948417612,6.188,161.52,161.5,0.04215746]
[1748948417804,37.108,161.52,161.5,0.04215746]
[1748948418010,30.92,161.52,161.5,0.04215746]
[1748948418817,37.1077,161.52,161.5,0.04215746]
[1748948419018,30.92,161.52,161.5,0.04215746]